[Event "*** SCC Grand Prix: Titled Tuesday Blitz"]
[Site "Chess.com"]
[Date "2020.07.14"]
[Round "9"]
[White "KyrgyzFighter"]
[Black "ljuks68"]
[Result "1-0"]
[WhiteElo "2302"]
[BlackElo "2436"]
[TimeControl "180+1"]
[EndTime "11:47:14 PDT"]
[Termination "KyrgyzFighter won on time"]

1. c4 {[%clk 0:03:00.9]} 1... c6 {[%clk 0:02:59.6]} 2. Nc3 {[%clk 0:03:00.2]}
2... d5 {[%clk 0:03:00.1]} 3. d4 {[%clk 0:03:00.5]} 3... Nf6 {[%clk 0:03:00.5]}
4. cxd5 {[%clk 0:03:00.4]} 4... cxd5 {[%clk 0:03:00.4]} 5. Bf4 {[%clk
0:03:00.6]} 5... Nc6 {[%clk 0:03:00.9]} 6. e3 {[%clk 0:02:59.7]} 6... Bf5 {[%clk
0:03:00.1]} 7. Qb3 {[%clk 0:02:58.5]} 7... Na5 {[%clk 0:03:00.2]} 8. Qa4+ {[%clk
0:02:58.1]} 8... Bd7 {[%clk 0:03:00.1]} 9. Qc2 {[%clk 0:02:58.3]} 9... e6 {[%clk
0:02:48.9]} 10. Bd3 {[%clk 0:02:56.5]} 10... Nc6 {[%clk 0:02:39.4]} 11. a3
{[%clk 0:02:44.5]} 11... Nh5 {[%clk 0:02:38.6]} 12. Bg3 {[%clk 0:02:41.1]} 12...
g6 {[%clk 0:02:05.3]} 13. Nf3 {[%clk 0:02:38.9]} 13... Nxg3 {[%clk 0:01:55.2]}
14. hxg3 {[%clk 0:02:39.8]} 14... Bg7 {[%clk 0:01:55.3]} 15. O-O {[%clk
0:02:36.7]} 15... O-O {[%clk 0:01:54.3]} 16. b4 {[%clk 0:02:34.9]} 16... Rc8
{[%clk 0:01:52.5]} 17. Rac1 {[%clk 0:02:25.6]} 17... h5 {[%clk 0:01:43.6]} 18.
Qd2 {[%clk 0:02:04]} 18... Qe7 {[%clk 0:01:09.1]} 19. Rfe1 {[%clk 0:01:51.5]}
19... Rfd8 {[%clk 0:01:08.2]} 20. Qe2 {[%clk 0:01:36.4]} 20... Be8 {[%clk
0:01:04.6]} 21. Nd2 {[%clk 0:01:03.7]} 21... e5 {[%clk 0:01:03.2]} 22. dxe5
{[%clk 0:00:56.1]} 22... Nxe5 {[%clk 0:01:02.8]} 23. Nb3 {[%clk 0:00:56.5]}
23... h4 {[%clk 0:00:58.3]} 24. g4 {[%clk 0:00:45.3]} 24... h3 {[%clk
0:00:20.3]} 25. Nxd5 {[%clk 0:00:27.9]} 25... Qh4 {[%clk 0:00:10.9]} 26. Rxc8
{[%clk 0:00:26.5]} 26... Rxc8 {[%clk 0:00:09.8]} 27. Nf4 {[%clk 0:00:25.8]}
27... hxg2 {[%clk 0:00:07.1]} 28. Nxg2 {[%clk 0:00:25.2]} 28... Qd8 {[%clk
0:00:05.3]} 29. Rd1 {[%clk 0:00:23.2]} 29... Qe7 {[%clk 0:00:05.2]} 30. Nc5
{[%clk 0:00:23]} 30... Bc6 {[%clk 0:00:04.6]} 31. Bc4 {[%clk 0:00:18.3]} 31...
Nf3+ {[%clk 0:00:03.7]} 32. Kf1 {[%clk 0:00:18.1]} 32... Qg5 {[%clk 0:00:03.5]}
33. e4 {[%clk 0:00:16.3]} 33... Qxg4 {[%clk 0:00:03.5]} 34. Rd3 {[%clk 0:00:15]}
34... Nh2+ {[%clk 0:00:02.9]} 35. Ke1 {[%clk 0:00:13.8]} 35... Qh3 {[%clk
0:00:02.8]} 36. Rxh3 {[%clk 0:00:13.6]} 1-0

[Event "*** SCC Grand Prix: Titled Tuesday Blitz"]
[Site "Chess.com"]
[Date "2020.07.14"]
[Round "9"]
[White "Haapana"]
[Black "Mikasinski"]
[Result "0-1"]
[WhiteElo "2348"]
[BlackElo "2496"]
[TimeControl "180+1"]
[EndTime "11:47:18 PDT"]
[Termination "Mikasinski won on time"]

1. d4 {[%clk 0:03:00.9]} 1... Nf6 {[%clk 0:02:59.9]} 2. c4 {[%clk 0:03:00.6]}
2... g6 {[%clk 0:03:00]} 3. Nf3 {[%clk 0:03:00.3]} 3... Bg7 {[%clk 0:02:59.6]}
4. g3 {[%clk 0:03:00.8]} 4... O-O {[%clk 0:02:59.6]} 5. Bg2 {[%clk 0:03:01.3]}
5... d6 {[%clk 0:03:00.2]} 6. O-O {[%clk 0:03:00.3]} 6... Nc6 {[%clk 0:03:00.6]}
7. Nc3 {[%clk 0:02:59.4]} 7... a6 {[%clk 0:03:00.8]} 8. b3 {[%clk 0:02:59.2]}
8... Bd7 {[%clk 0:02:56.2]} 9. Bb2 {[%clk 0:02:15.8]} 9... e5 {[%clk 0:02:54.6]}
10. Nd5 {[%clk 0:02:08.7]} 10... Nxd5 {[%clk 0:02:45.8]} 11. cxd5 {[%clk
0:02:09.6]} 11... Nxd4 {[%clk 0:02:39.5]} 12. Nxd4 {[%clk 0:02:09.5]} 12... exd4
{[%clk 0:02:39.8]} 13. Bxd4 {[%clk 0:02:10.1]} 13... Re8 {[%clk 0:02:36.3]} 14.
e3 {[%clk 0:02:01.4]} 14... Rc8 {[%clk 0:02:27.4]} 15. Rc1 {[%clk 0:02:00.2]}
15... Bb5 {[%clk 0:02:13]} 16. Re1 {[%clk 0:01:59.1]} 16... Bxd4 {[%clk
0:02:05.4]} 17. Qxd4 {[%clk 0:01:57.9]} 17... a5 {[%clk 0:01:54.9]} 18. Rc3
{[%clk 0:01:56]} 18... c5 {[%clk 0:01:44]} 19. dxc6 {[%clk 0:01:54.7]} 19...
bxc6 {[%clk 0:01:43.9]} 20. Rd1 {[%clk 0:01:47.8]} 20... d5 {[%clk 0:01:36.6]}
21. a4 {[%clk 0:01:34.6]} 21... Be2 {[%clk 0:01:23.8]} 22. Rdc1 {[%clk
0:01:30.2]} 22... Rb8 {[%clk 0:01:15.8]} 23. Rxc6 {[%clk 0:00:40.6]} 23... Rxb3
{[%clk 0:01:13]} 24. Bxd5 {[%clk 0:00:37.5]} 24... Rb4 {[%clk 0:00:58.9]} 25.
Qc5 {[%clk 0:00:28.9]} 25... Rxa4 {[%clk 0:00:25.8]} 26. Rc7 {[%clk 0:00:25.6]}
26... Rf8 {[%clk 0:00:23.7]} 27. h4 {[%clk 0:00:20.2]} 27... h5 {[%clk
0:00:15.6]} 28. e4 {[%clk 0:00:20.1]} 28... Qf6 {[%clk 0:00:10.8]} 29. Rc6
{[%clk 0:00:14]} 29... Qb2 {[%clk 0:00:07.5]} 30. Rxg6+ {[%clk 0:00:12.8]} 30...
Kh7 {[%clk 0:00:07.9]} 31. Rg5 {[%clk 0:00:12.2]} 31... Ra1 {[%clk 0:00:06.7]}
32. Rxa1 {[%clk 0:00:08.9]} 32... Qxa1+ {[%clk 0:00:07.6]} 33. Kg2 {[%clk
0:00:05.7]} 33... Qf1+ {[%clk 0:00:07.2]} 34. Kh2 {[%clk 0:00:03.1]} 34... Bf3
{[%clk 0:00:07.5]} 0-1

[Event "*** SCC Grand Prix: Titled Tuesday Blitz"]
[Site "Chess.com"]
[Date "2020.07.14"]
[Round "9"]
[White "SergeyKarjakin"]
[Black "GOGIEFF"]
[Result "1-0"]
[WhiteElo "2983"]
[BlackElo "2899"]
[TimeControl "180+1"]
[EndTime "11:47:19 PDT"]
[Termination "SergeyKarjakin won by resignation"]

1. e4 {[%clk 0:03:00.9]} 1... c5 {[%clk 0:02:58.4]} 2. Nf3 {[%clk 0:03:00.7]}
2... Nc6 {[%clk 0:02:58.2]} 3. Nc3 {[%clk 0:02:58.2]} 3... d6 {[%clk 0:02:53.9]}
4. d4 {[%clk 0:02:57.4]} 4... cxd4 {[%clk 0:02:54.2]} 5. Nxd4 {[%clk 0:02:58.3]}
5... Nf6 {[%clk 0:02:54.6]} 6. Bg5 {[%clk 0:02:58]} 6... e6 {[%clk 0:02:55]} 7.
Qd2 {[%clk 0:02:58.6]} 7... a6 {[%clk 0:02:44.1]} 8. O-O-O {[%clk 0:02:59.1]}
8... h6 {[%clk 0:02:44.4]} 9. Nxc6 {[%clk 0:02:57.2]} 9... bxc6 {[%clk
0:02:45.3]} 10. Bf4 {[%clk 0:02:57.4]} 10... d5 {[%clk 0:02:45.5]} 11. Qe3
{[%clk 0:02:56.9]} 11... Bb4 {[%clk 0:02:45.2]} 12. Be2 {[%clk 0:02:54.7]} 12...
O-O {[%clk 0:02:42.1]} 13. e5 {[%clk 0:02:52.2]} 13... Nd7 {[%clk 0:02:40.4]}
14. h4 {[%clk 0:02:47.8]} 14... Rb8 {[%clk 0:02:29.9]} 15. Bxh6 {[%clk
0:02:40.7]} 15... f6 {[%clk 0:02:07.5]} 16. exf6 {[%clk 0:02:27]} 16... Nxf6
{[%clk 0:01:48.1]} 17. Bxg7 {[%clk 0:02:19.8]} 17... Kxg7 {[%clk 0:01:28.9]} 18.
Qg3+ {[%clk 0:02:19.7]} 18... Kh8 {[%clk 0:01:21.8]} 19. Qxb8 {[%clk 0:02:20.1]}
19... Bd6 {[%clk 0:01:22]} 20. Qa7 {[%clk 0:01:59.5]} 20... e5 {[%clk
0:01:22.2]} 21. Bxa6 {[%clk 0:01:50.2]} 21... Bf5 {[%clk 0:01:15.1]} 22. h5
{[%clk 0:01:23.9]} 22... Qa5 {[%clk 0:00:50.7]} 23. h6 {[%clk 0:01:16.6]} 23...
Bd7 {[%clk 0:00:45.6]} 24. Rd3 {[%clk 0:00:53]} 24... Bc5 {[%clk 0:00:34.6]} 25.
Qb7 {[%clk 0:00:49.6]} 25... e4 {[%clk 0:00:33]} 26. Rg3 {[%clk 0:00:47.1]}
26... Bd6 {[%clk 0:00:12.9]} 27. Rg6 {[%clk 0:00:21.3]} 27... Qd8 {[%clk
0:00:05.5]} 28. Be2 {[%clk 0:00:18]} 28... d4 {[%clk 0:00:05.7]} 29. Rxf6 {[%clk
0:00:09.8]} 29... Rxf6 {[%clk 0:00:02.8]} 30. Nxe4 {[%clk 0:00:09.7]} 30... Bf4+
{[%clk 0:00:03.5]} 31. Kb1 {[%clk 0:00:09.1]} 31... Re6 {[%clk 0:00:03.4]} 32.
Bd3 {[%clk 0:00:08.3]} 32... Qe7 {[%clk 0:00:03.7]} 33. a4 {[%clk 0:00:07.3]}
33... c5 {[%clk 0:00:02.6]} 34. Nxc5 {[%clk 0:00:05.7]} 34... Re1+ {[%clk
0:00:02.5]} 35. Rxe1 {[%clk 0:00:04.9]} 35... Qxe1+ {[%clk 0:00:03.4]} 36. Ka2
{[%clk 0:00:05.3]} 1-0

[Event "*** SCC Grand Prix: Titled Tuesday Blitz"]
[Site "Chess.com"]
[Date "2020.07.14"]
[Round "9"]
[White "mfwagnerpeixoto"]
[Black "VladimirBugayev"]
[Result "1-0"]
[WhiteElo "2233"]
[BlackElo "2095"]
[TimeControl "180+1"]
[EndTime "11:47:19 PDT"]
[Termination "mfwagnerpeixoto won on time"]

1. e4 {[%clk 0:03:00.9]} 1... c6 {[%clk 0:02:58.5]} 2. d4 {[%clk 0:03:00.2]}
2... d5 {[%clk 0:02:58.5]} 3. f3 {[%clk 0:03:00.8]} 3... dxe4 {[%clk 0:02:57]}
4. fxe4 {[%clk 0:03:01.7]} 4... e5 {[%clk 0:02:57.2]} 5. Nf3 {[%clk 0:03:01.6]}
5... Bg4 {[%clk 0:02:56.7]} 6. Bc4 {[%clk 0:02:58.8]} 6... Nd7 {[%clk
0:02:52.8]} 7. O-O {[%clk 0:02:52]} 7... Ngf6 {[%clk 0:02:48.8]} 8. c3 {[%clk
0:02:42.6]} 8... Bh5 {[%clk 0:02:47.7]} 9. Nbd2 {[%clk 0:02:32.6]} 9... Bd6
{[%clk 0:02:46]} 10. Qe1 {[%clk 0:02:19.4]} 10... O-O {[%clk 0:02:41.9]} 11. Bb3
{[%clk 0:02:15.6]} 11... Qc7 {[%clk 0:02:36.9]} 12. Qh4 {[%clk 0:02:14]} 12...
Bg6 {[%clk 0:02:35.6]} 13. Re1 {[%clk 0:01:50.1]} 13... a5 {[%clk 0:02:32.5]}
14. Nc4 {[%clk 0:01:48.9]} 14... a4 {[%clk 0:02:16]} 15. Bc2 {[%clk 0:01:47.3]}
15... b5 {[%clk 0:02:09.3]} 16. Nxd6 {[%clk 0:01:43.6]} 16... Qxd6 {[%clk
0:02:09.4]} 17. Bg5 {[%clk 0:01:24.3]} 17... Qe6 {[%clk 0:01:45.7]} 18. dxe5
{[%clk 0:01:15]} 18... Nxe5 {[%clk 0:01:16.1]} 19. Nd4 {[%clk 0:01:03.3]} 19...
Qd6 {[%clk 0:01:06.2]} 20. Rad1 {[%clk 0:00:51.8]} 20... Nfd7 {[%clk 0:01:05.5]}
21. Be7 {[%clk 0:00:45.6]} 21... Qc7 {[%clk 0:00:58]} 22. Bxf8 {[%clk
0:00:44.7]} 22... Rxf8 {[%clk 0:00:58.5]} 23. Qg3 {[%clk 0:00:39]} 23... Qb6
{[%clk 0:00:55.7]} 24. Kh1 {[%clk 0:00:26.7]} 24... c5 {[%clk 0:00:35.4]} 25.
Nf3 {[%clk 0:00:26.1]} 25... f6 {[%clk 0:00:35.6]} 26. Nxe5 {[%clk 0:00:25.1]}
26... Nxe5 {[%clk 0:00:35.1]} 27. a3 {[%clk 0:00:23.2]} 27... Rd8 {[%clk
0:00:20.5]} 28. Rxd8+ {[%clk 0:00:21.6]} 28... Qxd8 {[%clk 0:00:20.6]} 29. Qe3
{[%clk 0:00:17.7]} 29... Qe7 {[%clk 0:00:20.5]} 30. h3 {[%clk 0:00:16.8]} 30...
h6 {[%clk 0:00:19.1]} 31. Qe2 {[%clk 0:00:17]} 31... Nc4 {[%clk 0:00:17.7]} 32.
Bb1 {[%clk 0:00:14.9]} 32... Qe5 {[%clk 0:00:15.5]} 33. Ba2 {[%clk 0:00:13.7]}
33... Bf7 {[%clk 0:00:14.2]} 34. Bxc4 {[%clk 0:00:13.7]} 34... Bxc4 {[%clk
0:00:13.8]} 35. Qe3 {[%clk 0:00:13.8]} 35... Bb3 {[%clk 0:00:09.8]} 36. Kg1
{[%clk 0:00:12.6]} 36... b4 {[%clk 0:00:07.6]} 37. axb4 {[%clk 0:00:11.7]} 37...
cxb4 {[%clk 0:00:07.8]} 38. Qd4 {[%clk 0:00:11.9]} 38... Qg3 {[%clk 0:00:03.2]}
39. Re3 {[%clk 0:00:09.2]} 1-0

[Event "*** SCC Grand Prix: Titled Tuesday Blitz"]
[Site "Chess.com"]
[Date "2020.07.14"]
[Round "9"]
[White "GMHess"]
[Black "EvgenyT"]
[Result "1/2-1/2"]
[WhiteElo "2772"]
[BlackElo "2912"]
[TimeControl "180+1"]
[EndTime "11:47:21 PDT"]
[Termination "Game drawn by agreement"]

1. d4 {[%clk 0:03:00.9]} 1... Nf6 {[%clk 0:02:58.9]} 2. c4 {[%clk 0:03:00.7]}
2... e6 {[%clk 0:02:58.9]} 3. Nc3 {[%clk 0:03:00.8]} 3... Bb4 {[%clk 0:02:58.3]}
4. Qc2 {[%clk 0:03:00.3]} 4... d6 {[%clk 0:02:53.7]} 5. a3 {[%clk 0:02:59.8]}
5... Bxc3+ {[%clk 0:02:51.7]} 6. Qxc3 {[%clk 0:03:00.7]} 6... O-O {[%clk
0:02:47.3]} 7. Nf3 {[%clk 0:03:00.5]} 7... b6 {[%clk 0:02:44.8]} 8. g3 {[%clk
0:02:51.2]} 8... Bb7 {[%clk 0:02:44.4]} 9. Bg2 {[%clk 0:02:45.3]} 9... Nbd7
{[%clk 0:02:40.8]} 10. O-O {[%clk 0:02:45.1]} 10... h6 {[%clk 0:02:35.4]} 11.
Rd1 {[%clk 0:02:29.9]} 11... Be4 {[%clk 0:02:31.9]} 12. Qe3 {[%clk 0:01:57.7]}
12... a5 {[%clk 0:02:21.8]} 13. Bh3 {[%clk 0:01:52.7]} 13... a4 {[%clk
0:02:15.1]} 14. Nd2 {[%clk 0:01:47.3]} 14... Bg6 {[%clk 0:02:06.3]} 15. b4
{[%clk 0:01:33]} 15... axb3 {[%clk 0:02:05.4]} 16. Qxb3 {[%clk 0:01:33]} 16...
Qc8 {[%clk 0:01:53.3]} 17. Bg2 {[%clk 0:01:16.4]} 17... Ra7 {[%clk 0:01:52.8]}
18. e4 {[%clk 0:01:13.5]} 18... e5 {[%clk 0:01:50.9]} 19. Bb2 {[%clk 0:01:11.2]}
19... Qa6 {[%clk 0:01:45.9]} 20. c5 {[%clk 0:00:54.4]} 20... exd4 {[%clk
0:01:29.3]} 21. cxd6 {[%clk 0:00:50]} 21... Nc5 {[%clk 0:01:28.9]} 22. Qc4
{[%clk 0:00:44.9]} 22... cxd6 {[%clk 0:00:56.3]} 23. Qxd4 {[%clk 0:00:21.1]}
23... Qa4 {[%clk 0:00:50.1]} 24. Qxa4 {[%clk 0:00:17.3]} 24... Rxa4 {[%clk
0:00:49.4]} 25. Bxf6 {[%clk 0:00:12.1]} 25... gxf6 {[%clk 0:00:48.7]} 26. Nf1
{[%clk 0:00:06.8]} 26... Rd8 {[%clk 0:00:44.2]} 27. Rab1 {[%clk 0:00:06.2]}
27... Nxe4 {[%clk 0:00:39.3]} 28. Rxb6 {[%clk 0:00:04.5]} 28... Rxa3 {[%clk
0:00:23.9]} 29. Ne3 {[%clk 0:00:04.1]} 29... Kg7 {[%clk 0:00:18.5]} 30. Bxe4
{[%clk 0:00:02.9]} 30... Bxe4 {[%clk 0:00:18.2]} 31. Rbxd6 {[%clk 0:00:02.6]}
31... Rxd6 {[%clk 0:00:17.9]} 32. Rxd6 {[%clk 0:00:03.5]} 32... Ra1+ {[%clk
0:00:16.9]} 33. Rd1 {[%clk 0:00:03.2]} 33... Ra3 {[%clk 0:00:16.1]} 34. Re1
{[%clk 0:00:03.3]} 34... f5 {[%clk 0:00:15]} 35. Nc4 {[%clk 0:00:02.2]} 35...
Ra6 {[%clk 0:00:11.8]} 36. Nd2 {[%clk 0:00:02.1]} 36... Bd5 {[%clk 0:00:11.3]}
37. Nf1 {[%clk 0:00:02.5]} 37... Kf6 {[%clk 0:00:11.1]} 38. Ne3 {[%clk
0:00:03.1]} 38... Bf3 {[%clk 0:00:11.2]} 39. Ng2 {[%clk 0:00:03.6]} 39... Bxg2
{[%clk 0:00:10.6]} 40. Kxg2 {[%clk 0:00:03.6]} 40... Kg6 {[%clk 0:00:09.9]}
1/2-1/2

[Event "*** SCC Grand Prix: Titled Tuesday Blitz"]
[Site "Chess.com"]
[Date "2020.07.14"]
[Round "9"]
[White "QueenOfTactics90"]
[Black "Efremov_Vlad"]
[Result "1-0"]
[WhiteElo "2010"]
[BlackElo "2196"]
[TimeControl "180+1"]
[EndTime "11:47:21 PDT"]
[Termination "QueenOfTactics90 won by resignation"]

1. e4 {[%clk 0:03:00.9]} 1... c5 {[%clk 0:02:59.6]} 2. Nf3 {[%clk 0:03:00.3]}
2... a6 {[%clk 0:03:00.2]} 3. d4 {[%clk 0:03:00.8]} 3... cxd4 {[%clk 0:03:00.5]}
4. Nxd4 {[%clk 0:03:01.7]} 4... Nf6 {[%clk 0:03:00.4]} 5. f3 {[%clk 0:03:00]}
5... e5 {[%clk 0:02:59.2]} 6. Nb3 {[%clk 0:02:59.6]} 6... d5 {[%clk 0:02:54.5]}
7. Bg5 {[%clk 0:02:59.1]} 7... d4 {[%clk 0:02:47.5]} 8. c3 {[%clk 0:02:56.8]}
8... Nc6 {[%clk 0:02:39.5]} 9. cxd4 {[%clk 0:02:44.7]} 9... Bb4+ {[%clk
0:02:36.8]} 10. Bd2 {[%clk 0:02:22.2]} 10... Bxd2+ {[%clk 0:02:35]} 11. Qxd2
{[%clk 0:02:20.5]} 11... exd4 {[%clk 0:02:31]} 12. Be2 {[%clk 0:02:16]} 12...
O-O {[%clk 0:02:28.8]} 13. O-O {[%clk 0:02:16]} 13... Re8 {[%clk 0:02:22.4]} 14.
Rd1 {[%clk 0:02:15.3]} 14... Qb6 {[%clk 0:02:17.1]} 15. Bd3 {[%clk 0:01:55.9]}
15... Be6 {[%clk 0:02:15.5]} 16. Nc1 {[%clk 0:01:39.8]} 16... Rac8 {[%clk
0:02:10.2]} 17. Na3 {[%clk 0:01:37.8]} 17... Nb4 {[%clk 0:02:07.5]} 18. b3
{[%clk 0:01:21.5]} 18... Nxd3 {[%clk 0:02:01.5]} 19. Qxd3 {[%clk 0:01:13.6]}
19... Red8 {[%clk 0:01:58.3]} 20. Nc2 {[%clk 0:01:12.1]} 20... Rc3 {[%clk
0:01:44.3]} 21. Qd2 {[%clk 0:01:10.8]} 21... Rxc2 {[%clk 0:01:38.7]} 22. Qxc2
{[%clk 0:01:08.1]} 22... d3+ {[%clk 0:01:38.5]} 23. Qf2 {[%clk 0:01:08]} 23...
Qxf2+ {[%clk 0:00:49.6]} 24. Kxf2 {[%clk 0:01:07.3]} 24... d2 {[%clk 0:00:50.5]}
25. Ne2 {[%clk 0:00:53.9]} 25... Rd3 {[%clk 0:00:46.8]} 26. Nf4 {[%clk
0:00:52.5]} 26... Rd7 {[%clk 0:00:45.7]} 27. Nxe6 {[%clk 0:00:52.5]} 27... fxe6
{[%clk 0:00:46.5]} 28. Ke2 {[%clk 0:00:50.9]} 28... Nh5 {[%clk 0:00:46.9]} 29.
g3 {[%clk 0:00:50.3]} 29... e5 {[%clk 0:00:42.3]} 30. Rxd2 {[%clk 0:00:50.3]}
30... Rc7 {[%clk 0:00:42.2]} 31. Rad1 {[%clk 0:00:47.8]} 31... Nf6 {[%clk
0:00:40.7]} 32. Rd8+ {[%clk 0:00:46.1]} 32... Kf7 {[%clk 0:00:40.3]} 33. R1d2
{[%clk 0:00:46.4]} 33... g6 {[%clk 0:00:38.2]} 34. h4 {[%clk 0:00:44.9]} 34...
h5 {[%clk 0:00:38]} 35. Kd3 {[%clk 0:00:38.7]} 35... Ke7 {[%clk 0:00:36.7]} 36.
Rh8 {[%clk 0:00:33.8]} 36... Rd7+ {[%clk 0:00:33.8]} 37. Ke3 {[%clk 0:00:33.9]}
37... Rc7 {[%clk 0:00:33]} 38. Rhd8 {[%clk 0:00:28]} 38... Rc3+ {[%clk
0:00:30.7]} 39. R8d3 {[%clk 0:00:27.8]} 39... Rc7 {[%clk 0:00:30.3]} 40. a3
{[%clk 0:00:26.8]} 40... Rc6 {[%clk 0:00:29.7]} 41. b4 {[%clk 0:00:26.7]} 41...
b5 {[%clk 0:00:29.4]} 42. Ke2 {[%clk 0:00:23.5]} 42... Rb6 {[%clk 0:00:28.3]}
43. Kd1 {[%clk 0:00:23.5]} 43... Rc6 {[%clk 0:00:27.9]} 44. Rc2 {[%clk
0:00:23.4]} 44... Rb6 {[%clk 0:00:26.1]} 45. Rc7+ {[%clk 0:00:22.5]} 45... Ke6
{[%clk 0:00:26.7]} 46. Rd8 {[%clk 0:00:21]} 46... a5 {[%clk 0:00:19]} 47. Ra8
{[%clk 0:00:20.7]} 47... Ra6 {[%clk 0:00:19.9]} 1-0

[Event "*** SCC Grand Prix: Titled Tuesday Blitz"]
[Site "Chess.com"]
[Date "2020.07.14"]
[Round "9"]
[White "GuuBol"]
[Black "LuckSlayeer"]
[Result "0-1"]
[WhiteElo "2236"]
[BlackElo "2392"]
[TimeControl "180+1"]
[EndTime "11:47:22 PDT"]
[Termination "LuckSlayeer won by resignation"]

1. e4 {[%clk 0:03:00.9]} 1... c5 {[%clk 0:02:59.9]} 2. d4 {[%clk 0:03:00.8]}
2... cxd4 {[%clk 0:03:00.3]} 3. c3 {[%clk 0:03:00.9]} 3... Nf6 {[%clk
0:03:00.5]} 4. e5 {[%clk 0:03:00.7]} 4... Nd5 {[%clk 0:03:00.8]} 5. Nf3 {[%clk
0:03:01.4]} 5... Nc6 {[%clk 0:03:00.4]} 6. cxd4 {[%clk 0:03:01.3]} 6... e6
{[%clk 0:02:59.6]} 7. a3 {[%clk 0:03:01.4]} 7... d6 {[%clk 0:03:00.1]} 8. Bd3
{[%clk 0:03:01.3]} 8... Be7 {[%clk 0:02:59.8]} 9. O-O {[%clk 0:03:01]} 9... O-O
{[%clk 0:02:57.7]} 10. Re1 {[%clk 0:03:01.2]} 10... dxe5 {[%clk 0:02:55.1]} 11.
dxe5 {[%clk 0:03:01.2]} 11... b6 {[%clk 0:02:51.1]} 12. Nbd2 {[%clk 0:03:00.5]}
12... Bb7 {[%clk 0:02:50.5]} 13. b4 {[%clk 0:02:59.7]} 13... Nf4 {[%clk
0:02:24.9]} 14. Bf1 {[%clk 0:02:59.1]} 14... Nd3 {[%clk 0:02:15.6]} 15. Re3
{[%clk 0:02:49.7]} 15... Nxc1 {[%clk 0:02:12.2]} 16. Rxc1 {[%clk 0:02:47.5]}
16... Rc8 {[%clk 0:02:12.1]} 17. Qb3 {[%clk 0:02:34.7]} 17... Nd4 {[%clk
0:01:53.7]} 18. Rxc8 {[%clk 0:02:21.1]} 18... Nxf3+ {[%clk 0:01:53.4]} 19. Nxf3
{[%clk 0:02:17.6]} 19... Qxc8 {[%clk 0:01:54.3]} 20. Nd4 {[%clk 0:01:53.1]}
20... Rd8 {[%clk 0:01:43.9]} 21. Nb5 {[%clk 0:01:50.6]} 21... Qc1 {[%clk
0:01:41.8]} 22. Rd3 {[%clk 0:01:41.4]} 22... Bd5 {[%clk 0:01:25.2]} 23. Qd1
{[%clk 0:01:34.5]} 23... Qg5 {[%clk 0:01:17.6]} 24. Qe1 {[%clk 0:01:05.5]} 24...
Rc8 {[%clk 0:01:04.5]} 25. Rc3 {[%clk 0:00:57.4]} 25... Rxc3 {[%clk 0:00:52.1]}
26. Qxc3 {[%clk 0:00:57.1]} 26... h5 {[%clk 0:00:52.1]} 27. Nxa7 {[%clk
0:00:55.4]} 27... h4 {[%clk 0:00:52]} 28. h3 {[%clk 0:00:55.1]} 28... f6 {[%clk
0:00:46.9]} 29. Nc6 {[%clk 0:00:43.3]} 29... Bf8 {[%clk 0:00:34.8]} 30. b5
{[%clk 0:00:37.6]} 30... Bc5 {[%clk 0:00:30.3]} 31. a4 {[%clk 0:00:31.9]} 31...
Qf4 {[%clk 0:00:21.2]} 32. Qe1 {[%clk 0:00:22.3]} 32... f5 {[%clk 0:00:13.3]}
33. a5 {[%clk 0:00:16.9]} 33... bxa5 {[%clk 0:00:12.7]} 34. Nxa5 {[%clk
0:00:17]} 34... g5 {[%clk 0:00:10.1]} 35. Nc6 {[%clk 0:00:16.1]} 35... g4 {[%clk
0:00:10.1]} 36. Qe2 {[%clk 0:00:14.8]} 36... g3 {[%clk 0:00:09.2]} 37. Nd8
{[%clk 0:00:09.3]} 37... Bxf2+ {[%clk 0:00:08]} 38. Kh1 {[%clk 0:00:09]} 38...
Bb6 {[%clk 0:00:07.7]} 39. Qe1 {[%clk 0:00:07.9]} 39... Bxd8 {[%clk 0:00:06.8]}
0-1